[Event "FIDE WYCC Girls U14 2023"]
[Site "Montesilvano"]
[Date "2023.11.21"]
[Round "8.10"]
[White "Zagorac, Lara"]
[Black "Suyamin, Bonjoure Fille"]
[Result "0-1"]
[ECO "A48"]
[WhiteElo "1866"]
[BlackElo "1570"]
[Annotator "NA RC"]
[PlyCount "140"]
[EventDate "2023.11.13"]
[EventType "swiss"]
[EventCountry "ITA"]
[SourceTitle "playchess.com"]
[Source "ChessBase"]
[SourceQuality "1"]
[TimeControl "40/5400+30:1800+30"]

1. d4 {[%emt 0:00:05]} Nf6 {[%emt 0:00:08]} 2. Nf3 {[%emt 0:00:09]} g6 {[%emt 0:00:14]} 3. c4 {[%emt 0:00:05]} Bg7 {[%emt 0:00:10]} 4. g3 {[%emt 0:00:06]} O-O {[%emt 0:00:15]} 5. Bg2 {[%emt 0:00:06]} d6 {[%emt 0:00:11]} 6. O-O {[%emt 0:00:07]} Nbd7 {[%emt 0:00:20]} 7. Nc3 {[%emt 0:00:16]} Re8 {[%emt 0:01:56]} 8. e4 {[%emt 0:00:56]} e5 {[%emt 0:00:12]} 9. h3 {[%emt 0:00:47]} exd4 {[%emt 0:02:51]} 10. Nxd4 {[%emt 0:00:31]} Ne5 {[%emt 0:01:50]} 11. b3 {[%emt 0:12:54]} Bd7 {[%emt 0:00:31]} 12. Be3 {[%emt 0:02:42]} a5 {[%emt 0:02:11]} 13. Qc2 {[%emt 0:06:38]} Nc6 {[%emt 0:15:49]} 14. Rad1 {[%emt 0:02:47]} Qc8 {[%emt 0:08:34]} 15. g4 {[%emt 0:15:59]} Nxd4 {[%emt 0:14:27]} 16. Bxd4 {[%emt 0:02:40]} h5 {[%emt 0:03:42]} 17. f3 {[%emt 0:00:59]} Be6 {[%emt 0:07:26]} 18. Nd5 {[%emt 0:05:31]} Nxd5 {[%emt 0:09:00]} 19. cxd5 {[%emt 0:02:50]} Bd7 {[%emt 0:00:52]} 20. Bxg7 {[%emt 0:03:58]} Kxg7 {[%emt 0:00:08]} 21. Qc3+ {[%emt 0:00:50]} Kg8 {[%emt 0:01:24]} 22. Rc1 {[%emt 0:01:19]} c5 {[%emt 0:00:51]} 23. Qf6 {[%emt 0:01:12]} Bb5 {[%emt 0:03:18]} 24. gxh5 {[%emt 0:09:17]} Qd8 {[%emt 0:03:39]} 25. Qxd8 {[%emt 0:12:48]} Rexd8 {[%emt 0:00:14]} 26. Rfd1 {[%emt 0:04:26]} gxh5 {[%emt 0:00:17]} 27. f4 {[%emt 0:00:14]} a4 {[%emt 0:03:27]} 28. Rd2 {[%emt 0:02:52]} axb3 {[%emt 0:00:26]} 29. axb3 {[%emt 0:00:08]} Ra3 {[%emt 0:00:15]} 30. e5 {[%emt 0:04:08]} Rxb3 {[%emt 0:01:18]} 31. exd6 {[%emt 0:00:52]} b6 {[%emt 0:00:39]} 32. d7 {[%emt 0:01:06]} Bxd7 {[%emt 0:00:24]} 33. d6 {[%emt 0:01:14]} Rb4 {[%emt 0:00:37]} 34. Rd5 {[%emt 0:03:06]} Rxf4 {[%emt 0:04:22]} 35. Rg5+ {[%emt 0:00:38]} Kh7 {[%emt 0:00:33]} 36. Rd1 {[%emt 0:00:50]} Kh6 {[%emt 0:00:37]} 37. Re5 {[%emt 0:01:27]} Be6 {[%emt 0:00:40]} 38. d7 {[%emt 0:01:06]} Rd4 {[%emt 0:02:01]} 39. Rxd4 {[%emt 0:00:26]} cxd4 {[%emt 0:00:09]} 40. Bc6 {[%emt 0:00:00]} Bxd7 {[%emt 0:00:00]} 41. Rd5 {[%emt 0:01:11]} Rg8+ {[%emt 0:00:35]} 42. Kf2 {[%emt 0:00:53]} Bxc6 {[%emt 0:00:05]} 43. Rxd4 {[%emt 0:00:36]} b5 {[%emt 0:00:41]} 44. Rf4 {[%emt 0:01:01]} Bd5 {[%emt 0:00:23]} 45. Rf5 {[%emt 0:00:25]} Bc4 {[%emt 0:00:07]} 46. Rc5 {[%emt 0:00:19]} Re8 {[%emt 0:00:43]} 47. Kf3 {[%emt 0:00:07]} Kg6 {[%emt 0:00:43]} 48. Kf4 {[%emt 0:00:09]} Re6 {[%emt 0:00:38]} 49. Rg5+ {[%emt 0:00:23]} Kh6 {[%emt 0:00:06]} 50. Rc5 {[%emt 0:00:20]} Be2 {[%emt 0:00:15]} 51. Rc7 {[%emt 0:00:17]} Kg6 {[%emt 0:00:18]} 52. Rb7 {[%emt 0:00:09]} f5 {[%emt 0:01:48]} 53. Rb8 {[%emt 0:00:38]} Re4+ {[%emt 0:00:21]} 54. Kg3 {[%emt 0:00:10]} f4+ {[%emt 0:00:25]} 55. Kh4 {[%emt 0:00:20]} f3+ {[%emt 0:00:35]} 56. Kg3 {[%emt 0:00:04]} h4+ {[%emt 0:00:18]} 57. Kf2 {[%emt 0:00:08]} b4 {[%emt 0:00:49]} 58. Rb7 {[%emt 0:00:31]} Kf6 {[%emt 0:00:28]} 59. Rb8 {[%emt 0:00:17]} Ke6 {[%emt 0:00:10]} 60. Re8+ {[%emt 0:00:09]} Kd5 {[%emt 0:00:05]} 61. Rb8 {[%emt 0:00:14]} Kc4 {[%emt 0:00:11]} 62. Rc8+ {[%emt 0:00:14]} Kb3 {[%emt 0:00:06]} 63. Rb8 {[%emt 0:00:03]} Kc2 {[%emt 0:00:15]} 64. Rc8+ {[%emt 0:00:08]} Rc4 {[%emt 0:00:03]} 65. Rb8 {[%emt 0:00:07]} b3 {[%emt 0:00:04]} 66. Ke3 {[%emt 0:00:11]} b2 {[%emt 0:00:10]} 67. Rxb2+ {[%emt 0:00:05]} Kxb2 {[%emt 0:00:04]} 68. Kf2 {[%emt 0:00:05]} Rf4 {[%emt 0:00:12]} 69. Kg1 {[%emt 0:00:32]} f2+ {[%emt 0:00:05]} 70. Kh2 {[%emt 0:00:08]} Bd3 {[%emt 0:00:08]} 0-1

[Event "FIDE WYCC Girls U14 2023"]
[Site "Montesilvano"]
[Date "2023.11.21"]
[Round "8.11"]
[White "Mueller, Riyanna"]
[Black "Agamyradova, Mahri"]
[Result "0-1"]
[ECO "C02"]
[WhiteElo "1754"]
[BlackElo "1652"]
[Annotator "NA RC"]
[PlyCount "98"]
[EventDate "2023.11.13"]
[EventType "swiss"]
[EventCountry "ITA"]
[SourceTitle "playchess.com"]
[Source "ChessBase"]
[SourceQuality "1"]
[TimeControl "40/5400+30:1800+30"]

1. e4 {[%emt 0:00:03]} e6 {[%emt 0:00:04]} 2. d4 {[%emt 0:00:05]} d5 {[%emt 0:00:04]} 3. e5 {[%emt 0:00:04]} c5 {[%emt 0:00:10]} 4. c3 {[%emt 0:00:08]} Qb6 5. Nf3 {[%emt 0:00:34]} Nc6 {[%emt 0:00:54]} 6. a3 {[%emt 0:00:34]} a5 {[%emt 0:02:31]} 7. Bd3 {[%emt 0:04:07]} Bd7 {[%emt 0:02:18]} 8. Bc2 {[%emt 0:02:02]} Qa6 {[%emt 0:32:35]} 9. Nbd2 {[%emt 0:18:25]} Rc8 {[%emt 0:06:27]} 10. dxc5 {[%emt 0:02:12]} Bxc5 {[%emt 0:01:47]} 11. Nb3 {[%emt 0:00:13]} Bb6 {[%emt 0:13:51]} 12. Bd3 {[%emt 0:04:43]} Qa7 {[%emt 0:03:52]} 13. O-O {[%emt 0:00:11]} a4 {[%emt 0:00:49]} 14. Nbd2 {[%emt 0:00:31]} Nge7 {[%emt 0:01:40]} 15. Qe2 {[%emt 0:06:45]} h6 {[%emt 0:05:36]} 16. Re1 {[%emt 0:06:19]} O-O {[%emt 0:02:53]} 17. Nf1 {[%emt 0:00:28]} Na5 {[%emt 0:01:26]} 18. Ng3 {[%emt 0:11:31]} Nb3 {[%emt 0:07:19]} 19. Rb1 {[%emt 0:11:05]} Nxc1 {[%emt 0:01:27]} 20. Rbxc1 {[%emt 0:00:29]} f6 {[%emt 0:02:18]} 21. Rf1 {[%emt 0:09:14]} f5 {[%emt 0:01:48]} 22. Nh5 {[%emt 0:03:16]} Ng6 {[%emt 0:01:14]} 23. Bb5 {[%emt 0:03:29]} Bc6 {[%emt 0:03:31]} 24. Rcd1 {[%emt 0:02:17]} Qa5 {[%emt 0:05:37]} 25. Bxc6 {[%emt 0:01:41]} bxc6 {[%emt 0:00:07]} 26. Nd4 {[%emt 0:00:13]} Bxd4 {[%emt 0:00:04]} 27. cxd4 {[%emt 0:00:17]} c5 {[%emt 0:01:50]} 28. Rd3 {[%emt 0:03:24]} Qb5 {[%emt 0:01:28]} 29. Qd1 {[%emt 0:00:25]} cxd4 {[%emt 0:00:44]} 30. Rg3 {[%emt 0:00:35]} Kh7 {[%emt 0:00:26]} 31. Qxd4 {[%emt 0:02:56]} Rf7 {[%emt 0:00:10]} 32. Re1 {[%emt 0:04:31]} Rc2 {[%emt 0:00:46]} 33. h3 {[%emt 0:03:06]} Rxb2 {[%emt 0:00:30]} 34. Rc3 {[%emt 0:00:24]} Re2 {[%emt 0:00:39]} 35. Rec1 {[%emt 0:00:33]} Re4 {[%emt 0:00:30]} 36. Qd2 {[%emt 0:00:20]} Rc4 {[%emt 0:00:30]} 37. Rxc4 {[%emt 0:00:42]} dxc4 {[%emt 0:00:01]} 38. Nf4 {[%emt 0:00:10]} Nxf4 {[%emt 0:00:56]} 39. Qxf4 {[%emt 0:00:06]} Rc7 {[%emt 0:00:07]} 40. g4 {[%emt 0:00:00]} g6 {[%emt 0:00:00]} 41. gxf5 {[%emt 0:02:02]} gxf5 {[%emt 0:00:51]} 42. Kh2 {[%emt 0:00:16]} c3 {[%emt 0:06:09]} 43. Qg3 {[%emt 0:02:16]} c2 {[%emt 0:03:35]} 44. Rg1 {[%emt 0:02:53]} Qe8 {[%emt 0:00:04]} 45. Qf4 {[%emt 0:00:22]} Qd7 {[%emt 0:06:39]} 46. Rc1 {[%emt 0:07:36]} Qd5 {[%emt 0:03:41]} 47. Qe3 {[%emt 0:04:09]} Rg7 {[%emt 0:08:44]} 48. f3 {[%emt 0:00:47]} Qd1 {[%emt 0:01:54]} 49. f4 {[%emt 0:01:07]} Rd7 {[%emt 0:00:12]} 0-1

[Event "FIDE WYCC Girls U14 2023"]
[Site "Montesilvano"]
[Date "2023.11.21"]
[Round "8.12"]
[White "Sachi Jain"]
[Black "Mohd Afif, Ainul Mardhiah"]
[Result "1-0"]
[ECO "C00"]
[WhiteElo "1743"]
[BlackElo "1478"]
[Annotator "NA RC"]
[PlyCount "111"]
[EventDate "2023.11.13"]
[EventType "swiss"]
[EventCountry "ITA"]
[SourceTitle "playchess.com"]
[Source "ChessBase"]
[SourceQuality "1"]
[TimeControl "40/5400+30:1800+30"]

1. e4 {[%emt 0:00:06]} e6 {[%emt 0:00:36]} 2. d3 {[%emt 0:00:27]} d5 {[%emt 0:01:04]} 3. Nd2 {[%emt 0:00:21]} Nf6 {[%emt 0:00:40]} 4. Ngf3 Nc6 5. g3 {[%emt 0:01:24]} dxe4 {[%emt 0:00:51]} 6. dxe4 {[%emt 0:00:46]} Bc5 {[%emt 0:00:24]} 7. Bg2 {[%emt 0:00:57]} e5 {[%emt 0:00:42]} 8. O-O {[%emt 0:01:10]} O-O {[%emt 0:00:17]} 9. c3 {[%emt 0:01:23]} a5 {[%emt 0:00:37]} 10. Qc2 {[%emt 0:04:47]} Qe7 {[%emt 0:00:58]} 11. Nc4 {[%emt 0:01:32]} Rd8 {[%emt 0:04:30]} 12. Ne3 {[%emt 0:19:30]} g6 {[%emt 0:04:51]} 13. h3 {[%emt 0:05:30]} b6 {[%emt 0:08:06]} 14. Nd5 {[%emt 0:08:09]} Nxd5 {[%emt 0:01:42]} 15. exd5 {[%emt 0:00:52]} Na7 {[%emt 0:12:41]} 16. Re1 {[%emt 0:09:03]} Bd6 {[%emt 0:14:24]} 17. Nxe5 {[%emt 0:04:50]} Bxe5 {[%emt 0:00:40]} 18. Bf4 {[%emt 0:02:19]} Bf5 {[%emt 0:09:00]} 19. Qb3 {[%emt 0:09:04]} a4 {[%emt 0:12:05]} 20. Qxa4 {[%emt 0:00:02]} f6 {[%emt 0:00:22]} 21. d6 {[%emt 0:00:21]} cxd6 {[%emt 0:01:32]} 22. Bxa8 {[%emt 0:00:18]} Rxa8 {[%emt 0:00:15]} 23. Bxe5 {[%emt 0:06:26]} dxe5 {[%emt 0:05:01]} 24. Qb3+ {[%emt 0:01:37]} Kg7 {[%emt 0:01:52]} 25. g4 {[%emt 0:01:42]} Be6 {[%emt 0:01:18]} 26. Qxb6 {[%emt 0:00:05]} Nc8 {[%emt 0:01:07]} 27. Qc6 {[%emt 0:01:08]} Rb8 {[%emt 0:01:20]} 28. b4 {[%emt 0:01:37]} Rb6 {[%emt 0:00:40]} 29. Qf3 {[%emt 0:00:23]} Qc7 {[%emt 0:03:11]} 30. a4 {[%emt 0:04:25]} Ne7 {[%emt 0:01:00]} 31. Red1 {[%emt 0:04:55]} Ra6 {[%emt 0:07:41]} 32. Qd3 {[%emt 0:04:22]} Rc6 {[%emt 0:01:03]} 33. Qd8 {[%emt 0:00:43]} Qb7 {[%emt 0:02:04]} 34. Rd6 Nc8 {[%emt 0:04:01]} 35. Rxc6 {[%emt 0:03:14]} Qxc6 {[%emt 0:00:03]} 36. g5 {[%emt 0:02:33]} fxg5 {[%emt 0:00:38]} 37. Qxg5 {[%emt 0:00:02]} Qxc3 {[%emt 0:00:28]} 38. Rc1 {[%emt 0:00:06]} Qxh3 {[%emt 0:00:53]} 39. Rc7+ {[%emt 0:02:26]} Bd7 {[%emt 0:00:29]} 40. Qxe5+ {[%emt 0:00:00]} Kg8 {[%emt 0:00:00]} 41. Qd5+ {[%emt 0:00:27]} Qe6 {[%emt 0:05:07]} 42. Rxd7 {[%emt 0:00:34]} Qxd5 {[%emt 0:00:22]} 43. Rxd5 {[%emt 0:00:01]} Nb6 {[%emt 0:00:17]} 44. Rd8+ {[%emt 0:00:09]} Kf7 {[%emt 0:00:14]} 45. a5 {[%emt 0:00:01]} Nc4 {[%emt 0:00:26]} 46. a6 {[%emt 0:00:06]} Ke7 {[%emt 0:00:30]} 47. a7 {[%emt 0:00:01]} Kxd8 {[%emt 0:00:37]} 48. a8=Q+ {[%emt 0:00:03]} Kc7 {[%emt 0:00:12]} 49. Qa7+ {[%emt 0:00:03]} Kc6 {[%emt 0:00:12]} 50. Qc5+ {[%emt 0:00:02]} Kb7 {[%emt 0:00:14]} 51. Qxc4 {[%emt 0:00:01]} h5 {[%emt 0:00:09]} 52. b5 {[%emt 0:00:01]} g5 {[%emt 0:00:07]} 53. Qc6+ {[%emt 0:00:02]} Kb8 {[%emt 0:00:11]} 54. b6 {[%emt 0:00:04]} h4 {[%emt 0:00:06]} 55. Qc7+ {[%emt 0:00:02]} Ka8 {[%emt 0:00:16]} 56. Qc8# {[%emt 0:00:03]} 1-0

[Event "FIDE WYCC Girls U14 2023"]
[Site "Montesilvano"]
[Date "2023.11.21"]
[Round "8.13"]
[White "Sodgerelt Naranbold"]
[Black "Smietanska, Wiktoria"]
[Result "0-1"]
[ECO "B90"]
[WhiteElo "1419"]
[BlackElo "2009"]
[Annotator "NA RC"]
[PlyCount "100"]
[EventDate "2023.11.13"]
[EventType "swiss"]
[EventCountry "ITA"]
[SourceTitle "playchess.com"]
[Source "ChessBase"]
[SourceQuality "1"]
[TimeControl "40/5400+30:1800+30"]

1. e4 {[%emt 0:01:56]} c5 {[%emt 0:00:08]} 2. Nf3 {[%emt 0:01:28]} d6 {[%emt 0:00:06]} 3. d4 {[%emt 0:01:31]} cxd4 {[%emt 0:00:08]} 4. Nxd4 {[%emt 0:01:29]} Nf6 {[%emt 0:00:12]} 5. Nc3 {[%emt 0:01:30]} a6 {[%emt 0:00:13]} 6. Be3 {[%emt 0:01:29]} e5 {[%emt 0:00:13]} 7. Nf3 {[%emt 0:01:32]} Be7 {[%emt 0:01:30]} 8. Bc4 {[%emt 0:01:16]} Be6 {[%emt 0:07:06]} 9. Bb3 {[%emt 0:01:42]} h6 {[%emt 0:12:56]} 10. Nh4 {[%emt 0:01:03]} Ng4 {[%emt 0:07:14]} 11. Ng6 {[%emt 0:11:15]} Nxe3 {[%emt 0:05:14]} 12. fxe3 {[%emt 0:00:03]} Bxb3 {[%emt 0:05:14]} 13. Nxh8 {[%emt 0:00:11]} Be6 {[%emt 0:00:40]} 14. O-O {[%emt 0:01:47]} Nd7 {[%emt 0:13:56]} 15. Nd5 {[%emt 0:05:23]} Nf6 {[%emt 0:00:41]} 16. Qd3 {[%emt 0:06:08]} Kf8 {[%emt 0:02:59]} 17. Rad1 {[%emt 0:07:43]} Bxd5 {[%emt 0:05:26]} 18. exd5 {[%emt 0:00:17]} Kg8 {[%emt 0:00:11]} 19. Nxf7 {[%emt 0:02:44]} Kxf7 {[%emt 0:00:13]} 20. Rf3 {[%emt 0:04:56]} Kg8 {[%emt 0:03:04]} 21. Qf5 {[%emt 0:01:01]} Qc8 {[%emt 0:01:08]} 22. Qg6 {[%emt 0:03:20]} Qg4 {[%emt 0:03:19]} 23. Qxg4 {[%emt 0:02:31]} Nxg4 {[%emt 0:00:09]} 24. b3 {[%emt 0:02:49]} Bg5 {[%emt 0:01:22]} 25. Re1 {[%emt 0:06:25]} e4 {[%emt 0:01:46]} 26. Rh3 {[%emt 0:00:05]} Rc8 {[%emt 0:04:04]} 27. c4 {[%emt 0:02:01]} b5 {[%emt 0:01:01]} 28. cxb5 {[%emt 0:00:06]} axb5 {[%emt 0:00:07]} 29. a4 {[%emt 0:00:01]} bxa4 {[%emt 0:01:00]} 30. bxa4 {[%emt 0:00:01]} Rc4 {[%emt 0:00:32]} 31. Kf1 {[%emt 0:01:48]} Rxa4 {[%emt 0:00:43]} 32. Rg3 {[%emt 0:00:03]} Nf6 {[%emt 0:02:47]} 33. Rd1 {[%emt 0:04:39]} Ra5 {[%emt 0:01:28]} 34. Rd4 {[%emt 0:00:25]} Rxd5 {[%emt 0:01:13]} 35. Ke2 {[%emt 0:00:35]} Kf7 {[%emt 0:06:13]} 36. Rxd5 {[%emt 0:00:38]} Nxd5 {[%emt 0:00:09]} 37. Rg4 {[%emt 0:00:51]} Bxe3 {[%emt 0:01:04]} 38. Rxe4 {[%emt 0:00:37]} Nc3+ {[%emt 0:00:15]} 39. Kxe3 {[%emt 0:00:09]} Nxe4 {[%emt 0:00:03]} 40. Kxe4 {[%emt 0:00:00]} Ke6 {[%emt 0:00:00]} 41. Kd4 {[%emt 0:09:10]} d5 {[%emt 0:00:19]} 42. Kd3 {[%emt 0:00:15]} Ke5 {[%emt 0:00:06]} 43. Ke3 {[%emt 0:00:02]} d4+ {[%emt 0:00:20]} 44. Kf3 {[%emt 0:00:04]} Kd5 {[%emt 0:00:33]} 45. Ke2 {[%emt 0:02:37]} Ke4 {[%emt 0:00:05]} 46. Kd2 {[%emt 0:11:57]} d3 {[%emt 0:00:13]} 47. Ke1 {[%emt 0:00:55]} Ke3 {[%emt 0:00:18]} 48. h4 {[%emt 0:00:13]} h5 {[%emt 0:00:15]} 49. g3 {[%emt 0:00:11]} g6 {[%emt 0:00:10]} 50. Kd1 {[%emt 0:00:05]} d2 {[%emt 0:00:10]} 0-1

[Event "FIDE WYCC Girls U14 2023"]
[Site "Montesilvano"]
[Date "2023.11.21"]
[Round "8.14"]
[White "Negre, Emilie"]
[Black "Maral Altankhuyag"]
[Result "1-0"]
[ECO "B38"]
[WhiteElo "1871"]
[BlackElo "1398"]
[Annotator "NA RC"]
[PlyCount "99"]
[EventDate "2023.11.13"]
[EventType "swiss"]
[EventCountry "ITA"]
[SourceTitle "playchess.com"]
[Source "ChessBase"]
[SourceQuality "1"]
[TimeControl "40/5400+30:1800+30"]

1. c4 {[%emt 0:00:01]} c5 {[%emt 0:00:13]} 2. Nf3 {[%emt 0:00:03]} Nc6 {[%emt 0:00:19]} 3. d4 {[%emt 0:00:05]} cxd4 {[%emt 0:03:07]} 4. Nxd4 {[%emt 0:00:05]} g6 {[%emt 0:01:06]} 5. e4 {[%emt 0:00:06]} Bg7 {[%emt 0:00:23]} 6. Be3 {[%emt 0:00:08]} d6 {[%emt 0:00:57]} 7. Nc3 {[%emt 0:00:28]} Nf6 {[%emt 0:00:27]} 8. Be2 {[%emt 0:00:05]} O-O {[%emt 0:00:51]} 9. O-O {[%emt 0:00:05]} Bd7 {[%emt 0:00:32]} 10. f3 {[%emt 0:00:09]} Rc8 {[%emt 0:04:04]} 11. Qd2 {[%emt 0:01:05]} a6 {[%emt 0:11:50]} 12. Rfd1 {[%emt 0:03:40]} Ne5 {[%emt 0:15:48]} 13. b3 {[%emt 0:03:44]} Ne8 {[%emt 0:07:56]} 14. Rac1 {[%emt 0:24:25]} Nc7 {[%emt 0:05:01]} 15. h3 {[%emt 0:11:33]} f5 {[%emt 0:05:41]} 16. f4 {[%emt 0:09:22]} Nc6 {[%emt 0:09:17]} 17. exf5 {[%emt 0:05:55]} gxf5 {[%emt 0:07:54]} 18. Nf3 {[%emt 0:03:22]} h6 {[%emt 0:03:33]} 19. Nd5 {[%emt 0:08:18]} Qe8 {[%emt 0:02:12]} 20. Bb6 {[%emt 0:07:36]} Ne6 {[%emt 0:03:21]} 21. Be3 {[%emt 0:12:42]} Kh7 {[%emt 0:01:37]} 22. Bd3 {[%emt 0:02:50]} Ned4 {[%emt 0:03:46]} 23. Nxd4 {[%emt 0:00:40]} Nxd4 {[%emt 0:00:02]} 24. Kh1 {[%emt 0:01:40]} Nc6 {[%emt 0:01:03]} 25. Re1 {[%emt 0:00:44]} e5 {[%emt 0:01:37]} 26. Bb1 {[%emt 0:01:35]} e4 {[%emt 0:02:47]} 27. Nb6 {[%emt 0:00:22]} Rd8 {[%emt 0:00:07]} 28. Qxd6 {[%emt 0:00:37]} Be6 {[%emt 0:00:26]} 29. Qc5 {[%emt 0:01:15]} Rf6 {[%emt 0:00:42]} 30. Nd5 {[%emt 0:01:16]} Bxd5 {[%emt 0:00:40]} 31. cxd5 {[%emt 0:00:11]} Bf8 {[%emt 0:00:17]} 32. Qc3 {[%emt 0:00:58]} Bg7 {[%emt 0:05:07]} 33. dxc6 {[%emt 0:00:10]} Rxc6 {[%emt 0:00:43]} 34. Qb4 {[%emt 0:01:08]} Rcd6 {[%emt 0:00:48]} 35. Qxb7 {[%emt 0:00:32]} Qg6 {[%emt 0:00:38]} 36. Rg1 {[%emt 0:00:36]} Qg3 {[%emt 0:00:42]} 37. Rc3 {[%emt 0:00:30]} Rg6 {[%emt 0:01:31]} 38. Bd4 {[%emt 0:00:33]} Qxf4 {[%emt 0:00:16]} 39. Bxg7 {[%emt 0:00:13]} Rxg7 {[%emt 0:00:09]} 40. Qxa6 {[%emt 0:00:00]} Rd2 {[%emt 0:00:00]} 41. Rc2 {[%emt 0:09:21]} Rd6 {[%emt 0:10:02]} 42. Qf1 {[%emt 0:01:15]} Qe5 {[%emt 0:00:54]} 43. Rf2 {[%emt 0:02:28]} Rg5 {[%emt 0:00:54]} 44. Qe2 {[%emt 0:01:24]} Rf6 {[%emt 0:05:40]} 45. Rgf1 {[%emt 0:01:17]} Kg7 {[%emt 0:01:48]} 46. Bxe4 {[%emt 0:01:16]} Re6 {[%emt 0:00:55]} 47. Bd3 {[%emt 0:00:45]} Qf6 {[%emt 0:00:34]} 48. Qb2 {[%emt 0:00:28]} Re5 {[%emt 0:00:02]} 49. Bxf5 {[%emt 0:01:06]} Rgxf5 {[%emt 0:00:23]} 50. Rxf5 {[%emt 0:00:14]} 1-0

[Event "FIDE WYCC Girls U14 2023"]
[Site "Montesilvano"]
[Date "2023.11.21"]
[Round "8.15"]
[White "Jankovic, Tamara"]
[Black "Skramstad, Oda Kofoed"]
[Result "1-0"]
[ECO "C50"]
[WhiteElo "1711"]
[BlackElo "1801"]
[Annotator "NA RC"]
[PlyCount "75"]
[EventDate "2023.11.13"]
[EventType "swiss"]
[EventCountry "ITA"]
[SourceTitle "playchess.com"]
[Source "ChessBase"]
[SourceQuality "1"]
[TimeControl "40/5400+30:1800+30"]

1. e4 {[%emt 0:00:03]} e5 {[%emt 0:01:21]} 2. Nf3 {[%emt 0:00:09]} Nc6 {[%emt 0:01:10]} 3. Bc4 {[%emt 0:00:06]} Nf6 {[%emt 0:00:38]} 4. d3 {[%emt 0:00:08]} Bc5 {[%emt 0:01:15]} 5. c3 {[%emt 0:00:13]} a6 {[%emt 0:02:00]} 6. O-O {[%emt 0:00:41]} d6 {[%emt 0:01:55]} 7. h3 {[%emt 0:00:20]} h6 {[%emt 0:00:28]} 8. Bb3 {[%emt 0:00:08]} O-O {[%emt 0:02:02]} 9. Re1 {[%emt 0:00:07]} Ba7 {[%emt 0:00:40]} 10. Nbd2 {[%emt 0:00:10]} Re8 {[%emt 0:05:04]} 11. Nf1 {[%emt 0:00:13]} Ne7 {[%emt 0:05:43]} 12. Ng3 {[%emt 0:03:47]} Ng6 {[%emt 0:00:56]} 13. d4 {[%emt 0:01:25]} c6 {[%emt 0:05:15]} 14. Be3 {[%emt 0:10:40]} exd4 {[%emt 0:06:49]} 15. Bxd4 {[%emt 0:02:22]} c5 {[%emt 0:00:58]} 16. Bxf6 {[%emt 0:00:43]} Qxf6 {[%emt 0:00:33]} 17. Nh5 {[%emt 0:05:37]} Qe7 {[%emt 0:01:00]} 18. Qd2 {[%emt 0:02:17]} b5 {[%emt 0:08:11]} 19. Bd5 {[%emt 0:00:50]} Rb8 {[%emt 0:00:31]} 20. b3 {[%emt 0:00:33]} Be6 {[%emt 0:04:55]} 21. Rad1 {[%emt 0:01:51]} Rbd8 {[%emt 0:01:15]} 22. c4 {[%emt 0:00:24]} Ne5 {[%emt 0:02:57]} 23. Qc3 {[%emt 0:07:14]} Nxf3+ {[%emt 0:13:39]} 24. Qxf3 {[%emt 0:02:14]} bxc4 {[%emt 0:01:00]} 25. bxc4 {[%emt 0:03:13]} Qg5 {[%emt 0:04:04]} 26. Re3 {[%emt 0:03:51]} Bb6 {[%emt 0:03:09]} 27. Qe2 {[%emt 0:03:20]} g6 {[%emt 0:03:17]} 28. Rg3 {[%emt 0:10:10]} Qh4 {[%emt 0:04:11]} 29. Qf3 {[%emt 0:01:38]} Kh8 {[%emt 0:01:26]} 30. Qc3+ {[%emt 0:01:01]} f6 {[%emt 0:00:36]} 31. Nxf6 {[%emt 0:00:38]} Re7 {[%emt 0:00:39]} 32. Bxe6 {[%emt 0:01:45]} Rxe6 {[%emt 0:00:20]} 33. Ne8+ {[%emt 0:00:55]} Re5 {[%emt 0:00:46]} 34. Nxd6 {[%emt 0:04:19]} Qf6 {[%emt 0:01:47]} 35. Rf3 {[%emt 0:06:11]} Rxd6 {[%emt 0:02:00]} 36. Rxf6 {[%emt 0:00:08]} Rxd1+ {[%emt 0:00:07]} 37. Kh2 {[%emt 0:00:05]} Bc7 {[%emt 0:00:48]} 38. Rc6 {[%emt 0:03:48]} 1-0

[Event "FIDE WYCC Girls U14 2023"]
[Site "Montesilvano"]
[Date "2023.11.21"]
[Round "8.16"]
[White "Haapsal, Maria Ioanna"]
[Black "Li Chen, Helena Joana"]
[Result "1/2-1/2"]
[ECO "A80"]
[WhiteElo "1597"]
[BlackElo "1799"]
[Annotator "NA RC"]
[PlyCount "86"]
[EventDate "2023.11.13"]
[EventType "swiss"]
[EventCountry "ITA"]
[SourceTitle "playchess.com"]
[Source "ChessBase"]
[SourceQuality "1"]
[TimeControl "40/5400+30:1800+30"]

1. d4 {[%emt 0:00:05]} f5 {[%emt 0:00:41]} 2. g4 {[%emt 0:00:11]} fxg4 {[%emt 0:01:15]} 3. h3 {[%emt 0:00:30]} g3 {[%emt 0:00:19]} 4. fxg3 {[%emt 0:01:22]} d5 {[%emt 0:00:09]} 5. Nf3 {[%emt 0:16:59]} Bf5 {[%emt 0:09:14]} 6. g4 {[%emt 0:04:50]} Bg6 {[%emt 0:04:41]} 7. Bf4 {[%emt 0:01:33]} e6 {[%emt 0:04:20]} 8. Nbd2 {[%emt 0:02:58]} Nc6 {[%emt 0:03:42]} 9. e3 {[%emt 0:02:28]} a6 {[%emt 0:03:40]} 10. a3 {[%emt 0:02:31]} Bd6 {[%emt 0:01:58]} 11. Bh2 {[%emt 0:10:38]} Bxh2 {[%emt 0:03:08]} 12. Rxh2 {[%emt 0:00:12]} Qd6 {[%emt 0:00:10]} 13. c4 {[%emt 0:05:36]} Qg3+ {[%emt 0:04:40]} 14. Rf2 {[%emt 0:02:00]} Nf6 {[%emt 0:00:55]} 15. Qe2 {[%emt 0:16:29]} Ne4 {[%emt 0:01:53]} 16. Nxe4 {[%emt 0:02:14]} dxe4 {[%emt 0:00:13]} 17. Ng5 {[%emt 0:02:57]} Nxd4 {[%emt 0:03:45]} 18. exd4 {[%emt 0:00:29]} e3 {[%emt 0:00:06]} 19. Nxe6 {[%emt 0:01:05]} Bd3 {[%emt 0:01:49]} 20. Qxd3 {[%emt 0:00:47]} Qxf2+ {[%emt 0:24:42]} 21. Kd1 {[%emt 0:00:02]} Ke7 {[%emt 0:00:13]} 22. Nxc7 {[%emt 0:01:55]} Raf8 {[%emt 0:02:28]} 23. Nd5+ {[%emt 0:00:54]} Kd8 {[%emt 0:02:16]} 24. Be2 {[%emt 0:09:17]} Qg1+ {[%emt 0:03:35]} 25. Kc2 {[%emt 0:00:01]} Qxa1 {[%emt 0:00:08]} 26. Qxe3 {[%emt 0:00:45]} Re8 {[%emt 0:00:10]} 27. Qg5+ {[%emt 0:00:23]} Kc8 {[%emt 0:00:12]} 28. Nb6+ {[%emt 0:07:35]} Kb8 {[%emt 0:03:57]} 29. Nd7+ {[%emt 0:00:31]} Ka8 {[%emt 0:02:37]} 30. Bf3 {[%emt 0:00:26]} Qg1 {[%emt 0:05:26]} 31. Bxb7+ {[%emt 0:00:37]} Kxb7 {[%emt 0:00:38]} 32. Nc5+ {[%emt 0:01:15]} Kb6 {[%emt 0:04:48]} 33. Na4+ {[%emt 0:00:28]} Kc6 {[%emt 0:00:06]} 34. Qd5+ {[%emt 0:05:25]} Kc7 {[%emt 0:00:08]} 35. Qc5+ {[%emt 0:00:42]} Kd7 {[%emt 0:01:02]} 36. Nb6+ {[%emt 0:00:06]} Ke6 {[%emt 0:00:06]} 37. Qe5+ {[%emt 0:01:15]} Kf7 {[%emt 0:00:11]} 38. Qf5+ {[%emt 0:00:27]} Kg8 {[%emt 0:01:02]} 39. Qd5+ {[%emt 0:00:06]} Kf8 {[%emt 0:00:08]} 40. Qd6+ {[%emt 0:00:00]} Kg8 {[%emt 0:00:00]} 41. Qd5+ {[%emt 0:11:21]} Kf8 {[%emt 0:03:32]} 42. Nd7+ Ke7 {[%emt 0:00:11]} 43. Ne5 {[%emt 0:11:32]} Qf2+ {[%emt 0:18:16]} 1/2-1/2